bitfinex/quotes_ETHUSD_20250622
["timestamp","ask_amount","ask_price","bid_price","bid_amount"]
[1750611002602,0.1423323,2194.4,2193.9,13.24780598]
[1750611002753,8.18,2194.2,2194.0,0.7739]
[1750611002954,8.18,2194.2,2194.1,1.45831278]
[1750611003206,0.1423323,2194.4,2194.1,1.39761278]
[1750611003499,0.1423323,2194.4,2194.1,1.8559383]
[1750611003500,8.18,2194.3,2194.1,1.8559383]
[1750611003707,8.18,2194.3,2193.6,2.14416]
[1750611003923,0.55,2194.2,2193.6,0.7739]
[1750611004578,0.55,2194.2,2193.5,1.370492]
[1750611004891,0.55,2194.0,2193.3,0.7739]
[1750611005108,2.374,2193.9,2193.3,0.7739]
[1750611005386,8.178,2193.8,2193.3,0.7739]
[1750611005765,8.178,2193.8,2193.3,10.7739]
[1750611006665,8.178,2193.7,2193.3,12.0345782]
[1750611006861,0.8195,2194.1,2193.3,12.0345782]
[1750611007395,10.552,2194.0,2193.3,12.0345782]
[1750611007579,0.55,2194.2,2193.4,0.0607]
[1750611007896,10.552,2194.1,2193.4,0.0607]
[1750611008099,10.552,2194.1,2193.4,2.7737388]
[1750611010880,10.552,2194.1,2193.4,0.0607]
[1750611011055,0.55,2193.8,2193.3,0.7739]
[1750611011257,8.177,2193.7,2193.3,0.8346]
[1750611011463,8.177,2193.7,2193.3,2.205092]
[1750611011752,8.177,2193.7,2193.3,2.144392]
[1750611011957,0.7704,2194.2,2193.3,3.93398006]
[1750611012183,10.551,2194.1,2193.3,3.93398006]
[1750611012380,10.551,2194.1,2193.4,10.0]
[1750611012569,8.177,2194.0,2193.4,10.0]
[1750611012773,8.177,2194.0,2193.5,1.39339801]
[1750611012973,8.177,2194.0,2193.5,1.45409801]
[1750611013856,0.55,2193.9,2193.3,2.144392]
[1750611014078,0.55,2193.9,2193.3,0.7739]
[1750611017461,0.55,2194.1,2193.3,0.7739]
[1750611017666,2.365,2193.8,2193.4,0.0607]
[1750611017867,2.365,2193.8,2193.3,0.7739]
[1750611019625,0.55,2194.1,2193.3,0.8346]
[1750611019914,10.541,2193.7,2193.3,0.8346]
[1750611020466,10.541,2193.7,2193.3,0.7739]
[1750611020668,8.175,2193.6,2193.4,0.0607]
[1750611020872,8.175,2193.5,2193.4,0.0607]
[1750611021814,8.175,2193.5,2193.3,0.7739]
[1750611021983,8.175,2193.5,2193.3,0.8346]
[1750611022371,8.175,2193.5,2193.4,0.0591]
[1750611023368,8.174,2193.5,2193.3,0.7739]
[1750611023615,8.174,2193.5,2193.0,0.7928]
[1750611023801,8.174,2193.5,2193.0,0.8519]
[1750611024397,0.55,2194.1,2193.1,0.0591]
[1750611024908,0.55,2193.9,2193.1,0.0591]
[1750611025915,0.55,2193.7,2193.0,1.25215023]
[1750611026913,0.55,2193.7,2193.0,1.31125023]
[1750611028315,0.55,2193.7,2193.0,2.89967223]
[1750611031675,0.55,2193.7,2193.0,2.84057223]
[1750611031881,0.55,2193.7,2193.0,1.25215023]
[1750611033317,0.55,2193.7,2193.0,0.7928]
[1750611034626,0.55,2193.3,2192.7,0.7913]
[1750611034788,0.55,2193.1,2192.4,0.8504]
[1750611034988,2.365,2193.2,2192.5,13.20222778]
[1750611035259,2.365,2193.7,2193.2,0.0591]
[1750611035387,8.17,2193.3,2193.2,0.8504]
[1750611035591,8.17,2193.3,2193.2,0.7913]
[1750611035787,8.9669,2193.3,2192.8,0.7913]
[1750611036027,0.55,2193.1,2192.5,0.7913]
[1750611036342,8.17,2193.0,2192.6,0.0591]
[1750611036490,8.17,2193.0,2192.5,0.7913]
[1750611036685,8.17,2193.0,2192.6,0.0591]
[1750611038326,8.17,2193.0,2192.5,12.37414117]
[1750611038715,8.17,2193.0,2192.6,0.0591]
[1750611039089,8.17,2193.0,2192.6,0.10470255]
[1750611039303,8.17,2193.0,2192.8,0.0591]
[1750611039931,8.17,2193.0,2192.7,0.7913]
[1750611040131,8.17,2193.0,2192.7,0.8504]
[1750611040746,8.17,2193.0,2192.4,13.66603771]
[1750611040747,8.17,2193.0,2192.4,0.46380993]
[1750611040950,0.55,2192.9,2192.2,0.7913]
[1750611041147,18.869,2193.5,2192.4,0.0591]
[1750611041148,0.7969,2193.3,2192.4,0.0591]
[1750611041445,0.55,2193.1,2192.5,0.8504]
[1750611042154,0.55,2193.1,2192.5,0.7913]
[1750611042348,0.55,2193.1,2192.3,0.8245]
[1750611043070,0.55,2193.1,2192.4,0.0591]
[1750611043243,0.7969,2193.3,2192.4,0.0591]
[1750611043244,0.7969,2193.3,2192.4,13.20222778]
[1750611043548,8.168,2193.0,2192.7,0.0591]
[1750611044126,8.168,2193.0,2192.6,0.8245]
[1750611044449,8.168,2193.0,2192.7,0.0591]
[1750611044745,8.168,2193.0,2192.7,1.08836]
[1750611045729,8.168,2193.0,2192.8,0.0591]
[1750611046729,8.168,2193.0,2192.6,0.8245]
[1750611046953,8.168,2193.0,2192.7,0.0591]
[1750611047148,1.44398036,2193.4,2192.8,0.8245]
[1750611047350,8.166,2193.3,2192.8,2.28324559]
[1750611047735,8.166,2193.3,2192.8,2.23764303]
[1750611048071,8.166,2193.3,2192.8,0.8836]
[1750611048278,8.166,2193.3,2192.8,0.8245]
[1750611048457,0.55,2193.2,2192.5,0.8773]
[1750611048925,10.55,2193.2,2192.3,0.8182]
[1750611049950,10.55,2193.2,2192.4,0.0591]
[1750611050561,10.55,2193.2,2192.4,0.10470858]
[1750611050826,10.55,2193.2,2192.4,0.0591]
[1750611051271,10.0,2193.2,2192.4,0.0591]
[1750611051422,10.0,2193.2,2192.6,0.0591]
[1750611052217,8.166,2193.3,2192.6,0.0591]
[1750611053371,1.44398036,2193.4,2193.0,13.20222778]
[1750611053572,1.44398036,2193.4,2193.1,1.44141605]
[1750611053868,1.44398036,2193.4,2193.3,0.0606]
[1750611054088,2.358,2194.0,2193.3,14.00381772]
[1750611054223,2.5003323,2194.4,2193.6,0.0606]
[1750611054423,8.163,2194.3,2193.7,0.756]
[1750611054643,8.163,2194.3,2193.7,0.8015799]
[1750611054851,8.163,2194.3,2193.7,0.756]
[1750611055248,0.1423323,2194.4,2193.9,4.55809289]
[1750611055447,0.11157117,2195.3,2194.4,0.756]
[1750611055725,8.162,2195.2,2194.9,0.756]
[1750611055924,0.11157117,2195.3,2194.9,0.756]
[1750611056121,0.11157117,2195.3,2195.1,0.756]
[1750611056320,0.11157117,2195.3,2195.2,0.0606]
[1750611056547,0.11157117,2195.3,2195.2,0.10614902]
[1750611056755,0.11157117,2195.3,2195.2,2.2131867]
[1750611056954,0.06987117,2195.3,2195.2,12.22823768]
[1750611057363,0.06987117,2195.3,2195.2,16.78363126]
[1750611057567,0.11892539,2195.9,2195.7,0.7612]
[1750611057864,0.11892539,2195.9,2195.8,0.10613673]
[1750611058233,0.11892539,2195.9,2195.8,0.88956142]
[1750611059225,0.11892539,2195.9,2195.8,10.75513265]
[1750611059529,0.11892539,2195.9,2195.8,0.84402469]
[1750611060152,0.11892539,2195.9,2195.7,0.8218]
[1750611060528,0.11892539,2195.9,2195.3,0.7612]
[1750611060758,1.3814,2195.8,2195.2,0.44625245]
[1750611060966,0.55,2195.3,2194.5,1.369504]
[1750611061260,0.8314,2195.4,2194.3,0.8218]
[1750611061261,0.0417,2195.0,2194.3,0.7612]
[1750611061448,0.55,2194.9,2194.3,0.7612]
[1750611061663,0.55,2194.9,2194.4,0.38041496]
[1750611061841,0.0417,2195.0,2194.4,0.38041496]
[1750611061842,8.153,2194.8,2194.4,0.38041496]
[1750611062483,0.55,2194.9,2194.4,0.38041496]
[1750611062644,8.153,2194.8,2194.4,0.38041496]
[1750611062845,8.153,2194.8,2194.4,0.84551108]
[1750611063183,8.153,2194.8,2194.4,0.38041496]
[1750611063940,8.1947,2194.8,2194.4,0.38041496]
[1750611064167,8.153,2194.8,2194.4,0.38041496]
[1750611064572,0.8731,2195.4,2194.4,0.63157496]
[1750611064760,10.0,2195.2,2194.6,0.0606]
[1750611065077,10.0,2195.2,2194.7,0.38036296]
[1750611065577,8.152,2195.3,2194.7,0.44096296]
[1750611066260,8.152,2195.3,2194.8,0.7969]
[1750611066577,2.357,2195.7,2194.9,0.0606]
[1750611066776,8.151,2195.6,2195.0,0.10614683]
[1750611066988,8.151,2195.6,2195.0,0.10614793]
[1750611067289,8.151,2195.6,2195.3,0.7969]
[1750611067445,8.151,2195.6,2195.4,0.0606]
[1750611067645,8.151,2195.6,2195.3,0.7969]
[1750611067844,8.151,2195.6,2195.4,1.369235]
[1750611068655,8.151,2195.6,2195.3,0.7969]
[1750611068996,0.11892539,2195.9,2195.4,0.0606]
[1750611069164,8.15,2195.6,2195.4,0.0606]
[1750611070048,8.15,2195.6,2195.3,0.7969]
[1750611070250,8.15,2195.6,2195.3,0.8575]
[1750611070475,8.148,2195.6,2195.3,0.7969]
[1750611070781,8.148,2195.6,2195.3,0.8575]
[1750611071280,8.148,2195.7,2195.3,0.7969]
[1750611071451,8.148,2195.7,2195.3,0.8575]
[1750611072050,8.148,2195.7,2195.3,0.7969]
[1750611072280,8.148,2195.7,2195.4,0.04554463]
[1750611072487,0.11892539,2195.9,2195.5,0.0606]
[1750611072799,8.147,2195.8,2195.5,0.45730315]
[1750611073095,8.147,2195.8,2195.6,0.0606]
[1750611073289,8.146,2195.8,2195.6,0.0606]
[1750611073654,8.146,2195.8,2195.5,0.0606]
[1750611074162,8.146,2195.8,2195.3,0.7969]
[1750611074366,8.146,2195.8,2195.5,0.0606]
[1750611074587,8.146,2195.8,2195.4,2.448762]
[1750611074751,8.146,2195.8,2195.5,0.0606]
[1750611075474,8.146,2195.8,2195.6,0.0606]
[1750611075990,8.146,2195.8,2195.4,1.429672]
[1750611076191,8.146,2195.8,2195.5,0.0606]
[1750611076686,8.146,2195.8,2195.4,1.369072]
[1750611076982,0.11892539,2195.9,2195.5,0.44082437]
[1750611077190,8.144,2195.8,2195.5,0.44082437]
[1750611077386,8.144,2195.8,2195.6,0.38020705]
[1750611078202,0.11892539,2195.9,2195.6,0.38020705]
[1750611078503,8.143,2195.8,2195.7,0.10614136]
[1750611078717,8.143,2195.8,2195.6,0.38020705]
[1750611078854,8.1847,2195.8,2195.6,0.38020705]
[1750611079487,8.143,2195.8,2195.6,0.38020705]
[1750611079789,0.11892539,2195.9,2195.6,1.52542934]
[1750611079790,8.142,2195.7,2195.6,1.52542934]
[1750611079965,8.142,2195.7,2195.6,0.38020705]
[1750611080164,8.142,2195.7,2195.6,0.44080705]
[1750611080494,8.141,2195.8,2195.7,0.0606]
[1750611080991,0.11892539,2195.9,2195.6,0.38020705]
[1750611081205,0.11892539,2195.9,2195.8,0.8615]
[1750611081582,0.1262796,2196.5,2196.2,10.8009]
[1750611081758,8.14,2197.4,2196.6,10.0606]
[1750611081961,2.347,2197.6,2196.8,0.0606]
[1750611082158,2.347,2197.6,2196.8,0.062]
[1750611082501,8.14,2198.0,2196.9,10.84641214]
[1750611082792,8.14,2198.0,2197.1,0.062]
[1750611083168,8.14,2198.0,2197.1,0.46008884]
[1750611083368,8.139,2197.3,2196.5,0.8009]
[1750611083892,8.139,2197.3,2196.7,0.062]
[1750611084065,8.139,2197.3,2196.8,0.0455151]
[1750611084270,8.139,2197.3,2196.8,1.09644491]
[1750611084473,8.139,2197.3,2196.9,0.062]
[1750611084791,8.139,2197.3,2196.8,1.09644491]
[1750611085585,8.139,2197.3,2196.9,0.062]
[1750611085791,8.139,2197.3,2196.8,1.11292981]
[1750611086103,8.139,2197.3,2196.7,0.46378305]
[1750611086260,0.0417,2197.1,2196.5,0.8009]
[1750611086463,0.55,2197.1,2196.2,0.062]
[1750611086687,2.9377,2197.1,2196.1,0.8009]
[1750611086889,2.9377,2197.1,2196.1,1.25957585]
[1750611087603,2.896,2197.1,2196.1,0.45867585]
[1750611087827,0.55,2196.9,2195.9,0.062]
[1750611088372,0.55,2196.9,2195.9,0.10753256]
[1750611088589,0.55,2196.9,2195.9,1.1908605]
[1750611089402,10.48,2196.8,2196.0,10.062]
[1750611089599,10.48,2196.8,2196.1,0.04552945]
[1750611089899,10.48,2196.8,2196.1,0.04552947]
[1750611090086,10.48,2196.8,2196.1,0.42564996]
[1750611090275,10.48,2196.8,2196.1,2.52832866]
[1750611090470,10.48,2196.8,2196.2,0.062]
[1750611090669,10.48,2196.8,2196.2,10.062]
[1750611091072,10.48,2196.8,2196.2,11.81063818]
[1750611091272,10.48,2196.8,2196.3,0.44208587]
[1750611091496,10.5217,2196.8,2196.4,0.38006857]
[1750611092267,10.48,2196.8,2196.4,0.38006857]
[1750611092466,10.48,2196.8,2196.5,0.062]
[1750611092670,0.89053382,2197.2,2196.6,0.38003396]
[1750611092976,8.132,2197.1,2196.7,0.10752374]
[1750611093169,0.13363382,2197.2,2196.8,0.44199936]
[1750611093370,0.13363382,2197.2,2197.0,0.062]
[1750611093569,0.13363382,2197.2,2197.1,0.37994748]
[1750611095680,0.13363382,2197.2,2197.1,0.44194748]
[1750611096119,0.13363382,2197.2,2197.1,0.37994748]
[1750611097074,0.13363382,2197.2,2197.1,0.44194748]
[1750611097871,0.13363382,2197.2,2197.1,0.37994748]
[1750611099213,0.13363382,2197.2,2197.1,0.44194748]
[1750611099410,0.13363382,2197.2,2197.1,0.37994748]
[1750611100428,0.13363382,2197.2,2197.1,0.44194748]
[1750611101728,0.13363382,2197.2,2197.1,0.37994748]
[1750611102232,0.13363382,2197.2,2197.1,0.44194748]
[1750611103189,0.13363382,2197.2,2197.1,0.37994748]
[1750611104093,0.72533382,2197.2,2197.1,0.37994748]
[1750611104834,1.55063382,2197.2,2197.1,0.37994748]
[1750611104994,1.00063382,2197.2,2197.1,0.37994748]
[1750611105194,9.12463382,2197.2,2197.1,0.37994748]
[1750611105713,9.67463382,2197.2,2197.1,0.37994748]
[1750611105914,0.13363382,2197.2,2197.1,0.37994748]
[1750611106188,8.25663382,2197.2,2197.1,0.37994748]
[1750611106563,8.25663382,2197.2,2197.1,0.380069]
[1750611110592,0.13363382,2197.2,2197.1,0.380069]
[1750611110889,8.25463382,2197.2,2197.1,0.380069]
[1750611113180,8.25463382,2197.2,2197.1,0.437869]
[1750611113358,8.25463382,2197.2,2197.1,0.81781648]
[1750611113559,8.25463382,2197.2,2197.1,0.76001648]
[1750611113994,8.25463382,2197.2,2197.1,0.81781648]
[1750611114376,8.25463382,2197.2,2197.1,0.76001648]
[1750611117809,8.25463382,2197.2,2197.1,1.89381813]
[1750611118023,8.25463382,2197.2,2197.1,25.03428601]
[1750611118694,8.25463382,2197.2,2197.1,25.84648601]
[1750611119197,0.13363382,2197.2,2197.1,25.84648601]
[1750611120808,0.5917,2197.6,2197.1,0.76001648]
[1750611120987,0.0417,2197.5,2197.2,0.37993018]
[1750611121196,2.886,2197.6,2197.2,0.37993018]
[1750611121197,0.5917,2197.3,2197.2,0.37993018]
[1750611121377,1.4064,2197.3,2197.2,0.37993018]
[1750611121701,8.9287,2197.3,2197.2,0.37993018]
[1750611123906,8.114,2197.3,2197.2,0.37993018]
[1750611126427,8.112,2197.3,2197.2,0.37993018]
[1750611129035,2.336,2197.7,2197.2,0.37993018]
[1750611129199,8.109,2197.5,2197.2,2.79432142]
[1750611129401,8.1507,2197.5,2197.2,0.83145837]
[1750611131502,0.0417,2197.3,2197.2,0.37993018]
[1750611131702,0.787,2197.4,2197.2,0.37993018]
[1750611132658,2.3777,2197.7,2197.2,0.37993018]
[1750611132659,0.7689,2197.6,2197.2,0.37993018]
[1750611132804,8.107,2197.3,2197.2,0.43773018]
[1750611133152,8.107,2197.3,2197.2,0.37993018]
[1750611134441,8.107,2197.3,2197.2,0.84699156]
[1750611134808,8.107,2197.3,2197.2,0.90479156]
[1750611135565,0.14098803,2197.8,2197.2,1.73339156]
[1750611135845,0.14098803,2197.8,2197.7,0.8864]
[1750611136051,11.09234225,2198.5,2197.7,0.8864]
[1750611136052,8.104,2198.1,2197.7,10.87409506]
[1750611136212,8.104,2198.1,2197.8,0.0578]
[1750611136412,8.104,2198.1,2197.7,0.8286]
[1750611136654,8.104,2198.1,2197.8,0.04549546]
[1750611136811,8.104,2198.1,2197.9,0.0578]
[1750611137858,8.104,2198.1,2197.7,0.8286]
[1750611138011,13.42834225,2198.5,2197.7,1.20844374]
[1750611138212,8.103,2198.4,2197.8,0.10329858]
[1750611138523,8.103,2198.4,2197.8,12.50302102]
[1750611138878,0.7651,2198.3,2197.9,0.37980918]
[1750611139148,0.0417,2198.2,2197.9,0.37980918]
[1750611139744,0.5917,2198.2,2197.9,0.37980918]
[1750611139917,0.0417,2198.1,2197.9,0.37980918]
[1750611140252,2.9157,2198.0,2197.9,0.37980918]
[1750611140750,3.6808,2198.0,2197.9,0.37980918]
[1750611141250,3.6391,2198.0,2197.9,0.37980918]
[1750611141452,3.6808,2198.0,2197.9,0.37980918]
[1750611142019,3.6391,2198.0,2197.9,0.37980918]
[1750611142215,0.7651,2198.0,2197.9,0.37980918]
[1750611142551,8.099,2198.0,2197.9,0.37980918]
[1750611142848,8.6907,2198.0,2197.9,0.37980918]
[1750611143218,9.4558,2198.0,2197.9,0.37980918]
[1750611143969,11.09234225,2198.5,2197.9,0.37980918]
[1750611143970,3.0891,2198.3,2197.9,0.37980918]
[1750611144119,8.097,2198.2,2198.0,0.0598]
[1750611144318,8.097,2198.2,2197.9,0.43960918]
[1750611144815,8.097,2198.2,2197.9,0.37980918]
[1750611145165,8.097,2198.2,2197.9,0.43960918]
[1750611145767,8.097,2198.2,2197.9,0.37980918]
[1750611146815,8.097,2198.2,2197.8,1.367755]
[1750611147020,0.55,2198.4,2197.8,1.427555]
[1750611147270,8.095,2198.3,2197.8,1.80738146]
[1750611147758,8.095,2198.3,2197.9,0.37980918]
[1750611148456,0.66666667,2198.4,2197.9,0.37980918]
[1750611148642,0.55,2198.2,2197.9,0.37980918]
[1750611149572,0.847,2198.1,2197.9,0.37980918]
[1750611149875,0.66666667,2198.4,2197.9,1.18680918]
[1750611150023,8.093,2198.0,2197.9,1.24660918]
[1750611150224,8.093,2198.0,2197.9,2.3712701]
[1750611151337,8.093,2198.0,2197.9,1.5044701]
[1750611151531,8.093,2198.0,2197.9,0.37980918]
[1750611153109,0.66666667,2198.4,2198.0,0.7769]
[1750611153372,8.09,2198.7,2198.4,10.0]
[1750611153543,8.09,2198.7,2198.1,10.0]
[1750611153733,8.09,2198.7,2198.0,0.8367]
[1750611154070,8.09,2198.7,2198.0,2.13095092]
[1750611154407,0.55,2198.5,2197.9,0.37980918]
[1750611154674,0.0417,2198.4,2198.1,0.37977462]
[1750611157547,0.5917,2198.2,2198.1,0.37977462]
[1750611157762,9.4546,2198.2,2198.1,0.37977462]
[1750611158061,0.55,2197.9,2197.2,1.22626138]
[1750611158266,0.55,2197.6,2197.3,0.37991289]
[1750611158465,8.086,2197.5,2197.3,0.37991289]
[1750611158630,0.7769,2197.8,2197.4,0.0598]
[1750611158830,8.085,2197.4,2197.3,1.27251289]
[1750611159067,0.7769,2198.4,2197.6,0.8328]
[1750611159263,8.085,2198.3,2198.0,0.0598]
[1750611159663,8.085,2198.3,2197.7,0.0598]
[1750611159868,13.26,2198.6,2197.8,0.0598]
[1750611160035,8.085,2198.2,2197.9,0.8328]
[1750611160229,8.085,2198.2,2197.9,10.8328]
[1750611160466,8.085,2198.2,2198.1,0.0598]
[1750611162065,8.085,2198.2,2198.1,0.37977462]
[1750611162402,8.084,2198.3,2198.1,0.37977462]
[1750611162762,8.084,2198.3,2198.1,0.43957462]
[1750611163066,8.084,2198.3,2197.9,0.17237462]
[1750611163902,8.1454,2198.3,2197.4,10.0]
[1750611164075,8.1454,2198.3,2197.5,1.48535581]
[1750611164460,0.7769,2198.2,2197.5,1.48535581]
[1750611165307,0.7769,2198.2,2197.5,1.54515581]
[1750611165863,0.6114,2198.1,2197.3,2.53055808]
[1750611166117,0.0614,2197.9,2197.2,0.50834857]
[1750611166419,8.08,2197.8,2197.2,0.44854857]
[1750611166575,0.0614,2197.6,2197.2,0.44854857]
[1750611166780,0.0614,2197.6,2197.1,1.7254]
[1750611167002,0.0614,2197.6,2197.1,1.7852]
[1750611168167,0.7769,2197.7,2197.1,0.9524]
[1750611168501,0.7769,2197.7,2197.1,2.1147022]
[1750611169265,0.7769,2198.0,2197.2,10.8328]
[1750611169499,8.628,2197.9,2197.2,10.8328]
[1750611170001,8.6894,2197.9,2197.2,10.8328]
[1750611171501,8.6894,2197.9,2197.2,11.2793331]
[1750611173229,8.078,2197.9,2197.2,12.61873663]
[1750611173405,8.077,2197.8,2197.3,0.04550764]
[1750611173899,8.077,2197.8,2197.2,12.68043663]
[1750611174106,8.077,2197.8,2197.2,11.3410331]
[1750611176619,8.077,2197.8,2197.2,24.41980098]
[1750611176779,8.077,2197.8,2197.2,11.2793331]
[1750611176979,8.077,2197.8,2197.2,1.2793331]
[1750611178422,8.077,2197.8,2197.3,10.0]
[1750611178580,8.077,2197.8,2197.3,12.53579108]
[1750611178779,8.077,2197.8,2197.4,0.0617]
[1750611179587,8.077,2197.8,2197.2,1.2793331]
[1750611179822,0.0621,2197.7,2197.2,1.2793331]
[1750611179999,8.077,2197.8,2197.3,0.0617]
[1750611180202,11.0101,2198.3,2197.4,0.10720603]
[1750611180529,8.07,2198.2,2197.6,0.0617]
[1750611181017,8.1321,2198.2,2197.6,0.0617]
[1750611182084,10.936,2198.4,2197.6,0.0617]
[1750611182285,0.0621,2198.2,2197.6,0.0617]
[1750611182789,10.936,2198.4,2197.7,0.0617]
[1750611183124,2.31,2198.5,2198.0,0.0617]
[1750611183291,0.0621,2198.7,2198.0,11.46021679]
[1750611183626,0.0621,2198.5,2197.8,0.783]
[1750611183922,8.068,2198.6,2197.9,0.0617]
[1750611184126,8.068,2198.6,2197.9,10.10719776]
[1750611184328,8.068,2198.6,2197.9,13.20216788]
[1750611184525,1.059845,2198.8,2198.2,13.14046788]
[1750611184526,0.228545,2198.8,2198.2,13.14046788]
[1750611184731,8.067,2198.7,2198.4,0.8447]
[1750611184940,0.228545,2198.8,2198.4,0.783]
[1750611185234,0.228545,2198.8,2198.7,0.8447]
[1750611185529,0.228545,2198.8,2198.7,0.783]
[1750611185737,0.228545,2198.8,2198.7,0.8447]
[1750611186228,0.228545,2198.8,2198.7,1.29634405]
[1750611186432,0.228545,2198.8,2198.7,12.74002524]
[1750611187436,0.228545,2198.8,2198.7,11.23464405]
[1750611187611,0.228545,2198.8,2198.7,10.45164405]
[1750611187806,0.228545,2198.8,2198.7,0.45164405]
[1750611188032,0.290645,2198.8,2198.3,0.7665]
[1750611188599,0.228545,2198.8,2198.3,0.7665]
[1750611188796,0.290645,2198.8,2198.3,0.7665]
[1750611189143,0.228545,2198.8,2198.3,0.8282]
[1750611189742,0.228545,2198.8,2198.3,1.29328448]
[1750611189924,0.0621,2198.7,2198.3,1.23158448]
[1750611190130,0.0621,2198.7,2198.3,0.46508448]
[1750611190336,0.7916,2198.6,2197.8,0.8282]
[1750611190635,0.7916,2198.6,2197.8,3.54976679]
[1750611190636,0.0621,2198.4,2197.8,3.54976679]
[1750611190814,0.0621,2198.4,2197.8,0.8282]
[1750611192419,0.0621,2198.4,2197.8,0.7665]
[1750611192743,0.55,2198.3,2197.6,0.46601658]
[1750611192942,0.55,2198.3,2197.5,10.868]
[1750611193254,0.8923,2198.2,2197.5,0.868]
[1750611193645,0.55,2198.1,2197.5,0.868]
[1750611194259,0.55,2198.1,2197.5,1.31957881]
[1750611194542,2.31,2198.0,2197.5,0.45157881]
[1750611194727,8.1191,2197.9,2197.2,0.8063]
[1750611195314,8.1191,2197.9,2197.2,11.9869109]
[1750611195519,0.8302,2197.8,2197.2,11.9869109]
[1750611195929,0.55,2198.5,2197.3,0.10720899]
[1750611196145,0.8302,2198.0,2197.3,0.10720899]
[1750611196341,0.8302,2198.0,2197.3,0.0617]
[1750611196557,0.8302,2198.0,2197.3,2.71537333]
[1750611196909,0.8302,2198.0,2197.3,2.66986788]
[1750611197203,0.8302,2198.0,2197.3,3.12698625]
[1750611197423,0.8302,2198.0,2197.3,0.51881837]
[1750611197714,0.0621,2197.8,2197.3,0.45711837]
[1750611197927,8.1171,2197.7,2197.2,10.0]
[1750611198128,8.055,2197.7,2197.2,10.0617]
[1750611198536,8.1171,2197.7,2197.2,10.0617]
[1750611198738,0.8302,2198.0,2197.4,0.7988]
[1750611198907,8.055,2197.6,2197.5,0.0617]
[1750611201076,8.053,2197.7,2197.5,0.0617]
[1750611202072,8.053,2197.7,2197.4,0.84430492]
[1750611202272,8.052,2198.1,2197.6,10.0]
[1750611202478,8.052,2198.1,2197.6,12.39847728]
[1750611202837,8.052,2198.1,2197.7,0.0625]
[1750611203678,8.052,2198.1,2197.6,10.0]
[1750611204252,8.052,2198.1,2197.7,0.0625]
[1750611204940,8.052,2198.1,2197.6,10.0]
[1750611205159,8.052,2198.1,2197.6,10.0625]
[1750611205378,8.052,2198.1,2197.6,10.0]
[1750611205537,8.052,2198.1,2197.6,10.0625]
[1750611205884,0.0584,2198.0,2197.4,0.7988]
[1750611206749,0.55,2197.7,2197.3,0.45734624]
[1750611206971,0.0584,2197.6,2196.9,0.7991]
[1750611207168,8.048,2197.5,2197.0,0.7638]
[1750611207343,8.1064,2197.5,2197.0,0.7638]
[1750611207878,0.7638,2197.8,2197.0,10.7911]
[1750611208081,8.048,2197.4,2197.2,0.0273]
[1750611208277,0.7638,2197.8,2197.2,13.14046788]
[1750611208467,8.047,2197.5,2197.4,0.8167]
[1750611208664,8.047,2197.5,2197.4,0.844]
[1750611209183,0.8169,2198.1,2197.5,0.0273]
[1750611209476,8.046,2197.9,2197.5,13.18596773]
[1750611209648,8.046,2197.9,2197.5,13.14046788]
[1750611209849,8.046,2197.9,2197.7,0.0273]
[1750611210279,8.045,2198.0,2197.9,10.844]
[1750611210576,8.045,2198.1,2197.9,10.844]
[1750611212564,8.045,2198.1,2197.9,0.8167]
[1750611213053,8.045,2198.1,2197.7,0.0625]
[1750611213252,0.785,2198.0,2197.6,1.38936743]
[1750611213462,0.6084,2197.8,2197.6,1.38936743]
[1750611213683,10.9474,2197.7,2197.6,1.38936743]
[1750611214272,11.7324,2197.7,2197.6,1.38936743]
[1750611216896,26.5404,2197.7,2197.6,1.38936743]
[1750611217097,21.7324,2197.7,2197.6,1.38936743]
[1750611218160,21.7324,2197.7,2196.4,0.7887]
[1750611218161,0.55,2197.4,2196.4,0.7887]
[1750611218488,0.55,2197.0,2196.4,0.7887]
[1750611218650,0.785,2196.7,2196.1,0.816]
[1750611218846,0.8434,2196.7,2196.1,0.7887]
[1750611219047,0.55,2196.6,2196.1,0.7887]
[1750611219385,0.785,2196.3,2195.6,0.7887]
[1750611219584,8.04,2196.2,2195.6,1.07676869]
[1750611220284,0.785,2196.3,2195.6,1.07676869]
[1750611220285,8.04,2196.1,2196.0,0.0273]
[1750611220584,8.04,2196.2,2195.8,0.7887]
[1750611220790,8.04,2196.1,2196.0,0.0273]
[1750611222080,2.296,2196.7,2196.0,23.95646788]
[1750611222285,8.039,2196.6,2196.4,0.0625]
[1750611222899,8.039,2196.6,2196.5,0.8402]
[1750611224304,8.039,2196.6,2196.5,0.7777]
[1750611224798,8.039,2196.6,2196.3,0.0625]
[1750611224961,8.039,2196.6,2196.1,2.39564679]
[1750611225307,8.0974,2196.6,2196.1,2.39564679]
[1750611225745,8.0974,2196.6,2196.0,10.0]
[1750611225944,8.0974,2196.6,2195.9,0.7777]
[1750611226970,8.0974,2196.6,2195.8,10.0]
[1750611226971,1.3022,2196.5,2195.8,10.0]
[1750611227173,8.038,2196.4,2195.8,10.0]
[1750611227700,0.55,2196.7,2195.9,0.0273]
[1750611227877,8.038,2196.3,2195.9,2.42184679]
[1750611228267,8.038,2196.3,2195.7,0.805]
[1750611228268,8.8103,2196.3,2195.7,0.805]